bitfinex/quotes_SOLUSD_20240621
["timestamp","ask_amount","ask_price","bid_price","bid_amount"]
[1718942784173,6.0133,133.04,132.98,41.77083072]
[1718942784474,6.0133,133.04,132.99,26.0154]
[1718942784645,0.17,133.11,132.99,65.42]
[1718942784850,6.0128,133.05,132.99,71.4353]
[1718942785068,6.0128,133.05,133.0,0.17]
[1718942785375,6.0132,133.04,133.0,0.51]
[1718942785574,6.0128,133.05,133.0,6.525]
[1718942785758,6.0128,133.05,133.01,20.0]
[1718942785954,6.0128,133.05,133.02,0.51]
[1718942787377,6.0132,133.04,133.02,0.51]
[1718942787673,6.0145,133.01,133.0,20.0]
[1718942787872,6.6462,133.12,132.99,65.42]
[1718942787873,6.0135,133.04,132.99,65.42]
[1718942788076,6.0129,133.05,132.99,71.4351]
[1718942788250,6.0133,133.04,132.99,71.4351]
[1718942788450,6.014,133.03,132.99,20.0]
[1718942789846,6.014,133.03,133.0,0.34]
[1718942790172,6.6462,133.12,133.0,0.34]
[1718942790378,0.34,133.11,133.0,0.34]
[1718942790671,6.0141,133.02,133.01,0.17]
[1718942790898,6.0138,133.03,133.01,0.17]
[1718942791455,6.0132,133.04,133.01,0.17]
[1718942795389,6.0132,133.04,133.01,20.17]
[1718942795565,6.0132,133.04,133.02,0.34]
[1718942795881,6.0132,133.04,133.03,0.17]
[1718942796482,6.6462,133.12,133.03,0.17]
[1718942796682,6.0117,133.08,133.03,6.1833]
[1718942796982,6.0117,133.08,133.04,51.3305]
[1718942797182,6.6462,133.12,133.05,0.17]
[1718942797183,6.0119,133.07,133.05,0.17]
[1718942798482,6.0116,133.08,133.05,0.17]
[1718942798691,6.0118,133.07,133.05,0.17]
[1718942798876,6.0114,133.08,133.05,0.17]
[1718942802275,6.0122,133.07,133.05,0.17]
[1718942802472,6.0115,133.08,133.04,51.3305]
[1718942802681,6.0115,133.08,133.05,0.17]
[1718942802878,6.011,133.09,133.05,0.17]
[1718942803191,6.0724,133.16,133.06,33.56]
[1718942803390,6.0092,133.13,133.08,6.0113]
[1718942803568,6.0092,133.13,133.09,20.51]
[1718942803768,6.0097,133.12,133.09,20.51]
[1718942804088,6.0097,133.12,133.1,0.17]
[1718942804669,6.0093,133.13,133.1,0.17]
[1718942805377,21.4554,133.19,133.1,0.17]
[1718942805578,21.4554,133.19,133.1,20.17]
[1718942805793,21.4554,133.19,133.11,0.34]
[1718942805977,6.0086,133.15,133.12,0.17]
[1718942806175,6.0079,133.16,133.12,15.6036]
[1718942806373,6.0082,133.16,133.13,20.0]
[1718942806875,6.0079,133.16,133.13,20.0]
[1718942807092,6.0065,133.19,133.14,0.51]
[1718942807282,6.5367,133.23,133.14,0.51]
[1718942807678,6.006,133.2,133.15,6.0082]
[1718942807885,6.006,133.2,133.16,20.51]
[1718942808189,6.0065,133.19,133.16,20.51]
[1718942808393,6.0061,133.2,133.16,0.51]
[1718942808581,6.0061,133.2,133.16,6.5906]
[1718942808900,6.8218767,133.21,133.17,20.0]
[1718942809201,6.8218767,133.21,133.18,0.51]
[1718942809495,6.006,133.2,133.18,0.51]
[1718942809788,0.8161767,133.21,133.18,0.51]
[1718942810884,0.8161767,133.21,133.18,0.17]
[1718942811380,6.0069,133.18,133.17,20.0]
[1718942811597,6.0087,133.14,133.13,20.0]
[1718942811801,6.3991,133.2,133.13,20.0]
[1718942811976,6.0078,133.16,133.13,20.0]
[1718942812290,6.0074,133.17,133.13,20.0]
[1718942812677,6.0078,133.16,133.13,20.0]
[1718942812867,6.3991,133.2,133.12,15.4336]
[1718942813182,6.0087,133.14,133.09,16.5156]
[1718942813570,6.0092,133.13,133.09,16.5156]
[1718942813768,6.0097,133.12,133.09,16.5156]
[1718942813970,6.3991,133.2,133.09,16.5156]
[1718942814282,6.0094,133.13,133.09,16.5156]
[1718942814474,6.3991,133.2,133.09,16.5156]
[1718942814671,6.0102,133.11,133.09,16.5156]
[1718942814875,6.0097,133.12,133.09,16.5156]
[1718942815284,6.0097,133.12,133.1,0.17]
[1718942815472,6.0097,133.12,133.09,16.5156]
[1718942815670,6.0102,133.11,133.09,16.5156]
[1718942815874,6.0111,133.09,133.06,15.1764]
[1718942816093,6.0106,133.1,133.07,20.0]
[1718942816294,6.0104,133.11,133.07,20.0]
[1718942816473,6.3991,133.2,133.07,20.0]
[1718942816474,6.0108,133.1,133.07,20.0]
[1718942816791,6.0102,133.11,133.07,20.0]
[1718942817199,6.0102,133.11,133.08,0.17]
[1718942817598,6.0094,133.13,133.08,6.181]
[1718942817807,6.0094,133.13,133.09,20.17]
[1718942818009,6.0094,133.13,133.1,0.34]
[1718942818500,6.0094,133.13,133.1,20.34]
[1718942818887,6.3991,133.2,133.11,0.17]
[1718942819294,6.0078,133.17,133.11,26.1797]
[1718942819602,6.0081,133.16,133.12,0.34]
[1718942819903,6.0081,133.16,133.13,0.17]
[1718942820283,6.3991,133.2,133.12,0.34]
[1718942820490,6.3991,133.2,133.13,0.17]
[1718942820491,6.0079,133.16,133.13,0.17]
[1718942820708,6.0079,133.16,133.13,20.17]
[1718942821006,6.0082,133.15,133.14,0.17]
[1718942821184,6.3991,133.2,133.13,20.0]
[1718942821584,6.3991,133.2,133.12,0.17]
[1718942821784,6.0082,133.16,133.11,0.51]
[1718942822089,6.0083,133.15,133.11,0.51]
[1718942822997,6.0079,133.16,133.11,6.5199]
[1718942823189,6.0084,133.15,133.12,20.0]
[1718942823507,6.3991,133.2,133.13,0.17]
[1718942823904,6.0083,133.15,133.13,0.17]
[1718942824095,6.0079,133.16,133.12,0.17]
[1718942824294,6.0079,133.16,133.13,15.1764]
[1718942824603,6.0079,133.16,133.14,20.0]
[1718942825481,6.3991,133.2,133.14,20.0]
[1718942825482,0.8161767,133.21,133.15,0.17]
[1718942825701,6.8220767,133.21,133.15,0.51]
[1718942826015,6.8216767,133.21,133.16,84.9876]
[1718942826197,6.0063,133.2,133.16,33.56]
[1718942826387,6.0063,133.2,133.17,20.51]
[1718942826887,6.8218767,133.21,133.17,20.51]
[1718942827185,0.8161767,133.21,133.17,20.51]
[1718942828110,6.006,133.2,133.17,20.51]
[1718942828285,6.8217767,133.21,133.17,20.51]
[1718942829291,0.8161767,133.21,133.17,20.51]
[1718942829492,0.8161767,133.21,133.17,65.93]
[1718942830588,0.8161767,133.21,133.2,21.5946]
[1718942830788,0.8161767,133.21,133.2,42.1046]
[1718942831508,0.8592466,133.28,133.2,143.8246]
[1718942831688,0.8592466,133.28,133.21,65.93]
[1718942831895,6.0033,133.26,133.21,65.93]
[1718942832102,0.8592466,133.28,133.21,88.67]
[1718942832411,0.8592466,133.28,133.22,2.19127595]
[1718942832593,0.8592466,133.28,133.23,0.51]
[1718942832793,0.8592466,133.28,133.25,68.16]
[1718942833103,0.8592466,133.28,133.26,52.5107]
[1718942833308,0.8592466,133.28,133.27,20.0]
[1718942833491,0.8592466,133.28,133.27,20.17]
[1718942833691,0.8592466,133.28,133.27,20.51]
[1718942834222,0.1914514,133.31,133.27,65.93]
[1718942834419,5.9999,133.34,133.28,32.98918922]
[1718942834713,5.9999,133.34,133.33,11.17739203]
[1718942834919,5.9999,133.34,133.33,43.65658125]
[1718942835122,7.83758024,133.42,133.33,32.47918922]
[1718942835427,6.5669,133.42,133.34,52.47918922]
[1718942835721,7.4360569,133.35,133.34,32.47918922]
[1718942835888,5.9997,133.34,133.27,15.0751]
[1718942836088,6.0001,133.33,133.28,20.34]
[1718942836319,1.4368569,133.35,133.29,32.4729633]
[1718942836490,6.0002,133.33,133.3,20.0]
[1718942836693,6.0002,133.33,133.28,31.3389255]
[1718942836999,6.0011,133.31,133.28,20.17]
[1718942837703,6.0007,133.32,133.28,20.17]
[1718942838187,1.4368569,133.35,133.28,20.17]
[1718942838899,6.001,133.31,133.28,20.17]
[1718942839797,8.0037569,133.35,133.28,20.0]
[1718942840107,6.0025,133.28,133.25,20.0]
[1718942840510,6.0029,133.27,133.25,20.0]
[1718942840690,6.0033,133.26,133.25,20.0]
[1718942840896,11.27869098,133.31,133.24,22.19094702]
[1718942841203,6.0033,133.26,133.24,20.0]
[1718942841908,8.0037569,133.35,133.24,20.0]
[1718942841909,6.0037,133.25,133.24,20.0]
[1718942842120,6.0051,133.22,133.16,74.6145]
[1718942842293,6.0059,133.21,133.17,20.0]
[1718942842617,26.23227243,133.2,133.17,20.0]
[1718942842802,6.0053,133.22,133.17,20.0]
[1718942843003,20.22617243,133.21,133.17,20.0]
[1718942843206,20.22617243,133.2,133.17,20.0]
[1718942843511,11.28394769,133.19,133.17,20.0]
[1718942843895,22.5527,133.28,133.17,20.0]
[1718942843896,11.28394769,133.2,133.17,20.0]
[1718942844095,11.28394769,133.19,133.17,20.0]
[1718942844397,22.5527,133.28,133.17,20.0]
[1718942844596,20.22617243,133.27,133.17,20.0]
[1718942844899,21.66681234,133.26,133.17,20.0]
[1718942845104,21.66681234,133.25,133.17,20.0]
[1718942845414,21.66681234,133.27,133.17,20.0]
[1718942845604,22.5527,133.28,133.17,20.0]
[1718942846094,22.5527,133.28,133.18,0.34]
[1718942846624,0.17,133.27,133.17,20.0]
[1718942846794,0.34,133.27,133.17,20.0]
[1718942847618,22.5527,133.28,133.17,20.0]
[1718942848299,0.17,133.27,133.17,20.0]
[1718942848498,22.5527,133.28,133.15,45.42]
[1718942848694,22.5527,133.28,133.16,65.59]
[1718942848893,22.5527,133.28,133.18,45.42]
[1718942849113,294.28426577,133.36,133.2,21.6883]
[1718942849114,16.292,133.31,133.2,21.6883]
[1718942849306,16.292,133.31,133.21,0.34]
[1718942849613,16.292,133.31,133.21,20.0]
[1718942850197,16.292,133.31,133.22,0.17]
[1718942850596,16.292,133.31,133.21,20.0]
[1718942851313,16.292,133.31,133.17,21.6883]
[1718942851314,0.17,133.3,133.17,21.6883]
[1718942851494,0.51,133.3,133.18,20.0]
[1718942851691,45.51,133.3,133.17,21.6883]
[1718942851918,45.51,133.3,133.18,20.0]
[1718942852724,0.34,133.3,133.18,20.0]
[1718942853017,0.34,133.3,133.19,0.17]
[1718942853725,16.292,133.31,133.18,20.0]
[1718942853896,16.292,133.31,133.19,0.51]
[1718942857225,16.292,133.31,133.2,45.59]
[1718942857517,22.7052569,133.35,133.23,51.6044]
[1718942857721,22.7052569,133.35,133.24,20.51]
[1718942857927,22.7052569,133.35,133.24,26.514]
[1718942858914,22.7052569,133.35,133.24,20.51]
[1718942860013,22.7052569,133.35,133.24,20.17]
[1718942860414,0.17,133.34,133.25,20.0]
[1718942860615,0.17,133.34,133.24,0.17]
[1718942861104,0.17,133.34,133.23,20.0]
[1718942861305,21.2684,133.33,133.23,20.0]
[1718942861507,0.34,133.32,133.19,22.2983]
[1718942861719,0.34,133.32,133.2,20.0]
[1718942862028,0.34,133.32,133.19,16.292]
[1718942863229,0.34,133.32,133.2,20.0]
[1718942863406,6.6972,133.31,133.2,20.0]
[1718942863604,0.34,133.3,133.17,20.0]
[1718942863920,0.34,133.3,133.15,6.1844]
[1718942863921,6.1324,133.27,133.15,6.1844]
[1718942864118,6.1324,133.27,133.13,38.2742]
[1718942864428,6.1324,133.27,133.17,26.0073]
[1718942864725,6.1324,133.27,133.17,6.0073]
[1718942864920,6.1324,133.27,133.16,6.0077]
[1718942865110,6.1324,133.27,133.16,15.1406]
[1718942865311,6.1324,133.27,133.17,0.51]
[1718942865512,6.1324,133.27,133.17,20.51]
[1718942866010,6.1324,133.27,133.17,20.17]
[1718942867722,6.1324,133.27,133.17,20.0]
[1718942868622,0.34,133.26,133.17,20.0]
[1718942868824,0.34,133.26,133.14,20.0]
[1718942869021,0.34,133.26,133.15,15.4806]
[1718942869334,0.34,133.26,133.16,20.0]
[1718942870028,0.34,133.26,133.14,20.0]
[1718942870540,22.5048,133.24,133.14,20.0]
[1718942872019,22.5048,133.24,133.15,0.17]
[1718942872334,22.5048,133.24,133.15,0.34]
[1718942874943,22.5048,133.24,133.14,20.0]
[1718942875119,22.5048,133.24,133.15,0.17]
[1718942875629,22.5048,133.24,133.14,20.0]
[1718942875823,22.5048,133.24,133.15,0.17]
[1718942876135,22.5048,133.24,133.14,20.0]
[1718942876518,22.5048,133.24,133.15,0.17]
[1718942878333,22.5048,133.24,133.15,45.76]
[1718942878516,6.1468,133.24,133.16,20.17]
[1718942878829,6.1468,133.24,133.17,0.34]
[1718942879022,6.1468,133.24,133.18,0.17]
[1718942879416,6.112,133.27,133.18,0.17]
[1718942879737,6.112,133.27,133.18,20.17]
[1718942879925,6.112,133.27,133.19,0.34]
[1718942880124,6.112,133.27,133.2,0.17]
[1718942881223,6.112,133.27,133.2,20.17]
[1718942881540,6.112,133.27,133.21,20.34]
[1718942881915,6.112,133.27,133.21,20.17]
[1718942882120,6.112,133.27,133.21,0.17]
[1718942882324,6.112,133.27,133.19,20.0]
[1718942882534,6.112,133.27,133.18,20.0]
[1718942882837,16.006,133.26,133.15,20.0]
[1718942883012,16.006,133.26,133.14,20.0]
[1718942883210,16.006,133.26,133.14,6.0087]
[1718942883942,16.006,133.26,133.15,0.17]
[1718942884143,16.006,133.26,133.14,0.34]
[1718942884437,15.836,133.24,133.13,15.3106]
[1718942885231,6.4355,133.23,133.13,15.3106]
[1718942885955,6.4355,133.23,133.11,45.42]
[1718942886434,6.4355,133.23,133.12,35.836]
[1718942887033,6.4355,133.23,133.13,0.17]
[1718942887522,6.4355,133.23,133.13,6.179]
[1718942887721,6.4355,133.23,133.14,65.76]
[1718942888049,6.4355,133.23,133.15,20.17]
[1718942888434,6.4355,133.23,133.16,0.34]
[1718942888746,6.4355,133.23,133.17,0.17]
[1718942888940,6.4355,133.23,133.17,20.17]
[1718942889125,6.4355,133.23,133.18,0.34]
[1718942889321,6.4355,133.23,133.19,0.17]
[1718942889521,6.4355,133.23,133.17,20.17]
[1718942889735,6.4355,133.23,133.18,0.34]
[1718942889923,6.4355,133.23,133.19,0.17]
[1718942890233,6.4355,133.23,133.16,26.0075]
[1718942890440,6.4355,133.23,133.17,20.51]
[1718942891561,6.4355,133.23,133.17,20.0]
[1718942891846,6.4355,133.23,133.15,20.0]
[1718942892017,6.4355,133.23,133.16,0.17]
[1718942892219,6.4355,133.23,133.14,20.0]
[1718942892426,6.4355,133.23,133.1,17.04767695]
[1718942892835,6.4355,133.23,133.11,30.096521]
[1718942893232,6.4355,133.23,133.12,6.0096]
[1718942893741,6.4355,133.23,133.14,6.0085]
[1718942893931,6.4355,133.23,133.15,20.17]
[1718942894133,6.4355,133.23,133.15,0.17]
[1718942894734,6.4355,133.23,133.15,0.51]
[1718942894927,6.4355,133.23,133.15,0.34]
[1718942895151,6.4355,133.23,133.13,20.0]
[1718942895350,6.4355,133.23,133.12,20.0]
[1718942895934,6.4355,133.23,133.1,46.72557695]
[1718942896145,6.4355,133.23,133.13,15.836]
[1718942896948,6.4355,133.23,133.14,0.34]
[1718942897659,6.4355,133.23,133.14,20.34]
[1718942898035,6.4355,133.23,133.15,6.1779]
[1718942898253,6.4355,133.23,133.16,20.34]
[1718942898829,6.4355,133.23,133.17,20.0]
[1718942899032,6.4355,133.23,133.16,0.17]
[1718942899234,6.4355,133.23,133.15,20.0]
[1718942899732,6.4355,133.23,133.14,20.0]
[1718942900745,6.4355,133.23,133.15,0.17]
[1718942900949,6.4355,133.23,133.14,20.0]
[1718942901842,6.4355,133.23,133.11,22.19308678]
[1718942902160,6.4355,133.23,133.12,16.346]
[1718942902357,6.4355,133.23,133.13,20.0]
[1718942903650,15.5335,133.21,133.13,20.0]
[1718942904060,15.5335,133.21,133.11,2.19308678]
[1718942904359,6.3242,133.2,133.11,15.5335]
[1718942904654,6.3242,133.2,133.12,20.0]
[1718942907455,6.1029,133.17,133.11,15.5335]
[1718942907654,6.1029,133.17,133.1,1.30557695]
[1718942907841,6.1029,133.17,133.05,28.49]
[1718942908045,22.3288,133.15,133.06,17.53241355]
[1718942908554,22.3288,133.15,133.05,6.0127]
[1718942908738,22.3288,133.15,133.04,6.013]
[1718942909658,22.3288,133.15,133.03,6.0135]
[1718942909955,22.3288,133.15,133.04,20.0]
[1718942910756,6.1029,133.14,133.04,20.0]
[1718942910975,15.951,133.13,133.03,20.0]
[1718942911143,6.3393,133.12,133.01,20.0]
[1718942911349,6.3393,133.12,133.02,16.2259]
[1718942911537,6.3393,133.12,133.03,20.0]
[1718942912338,15.2604,133.11,133.03,20.0]
[1718942912543,6.2898,133.1,133.03,20.0]
[1718942912754,6.2898,133.1,132.98,20.0]
[1718942912958,16.2576,133.09,133.0,15.2604]
[1718942913354,16.2576,133.09,132.98,26.0159]
[1718942913960,16.2576,133.09,132.98,20.0]
[1718942914770,16.2576,133.09,133.02,6.0137]
[1718942914949,16.2576,133.09,133.03,20.34]
[1718942915267,16.2576,133.09,133.03,20.0]
[1718942915566,16.2576,133.09,132.99,20.0]
[1718942915765,16.2576,133.09,132.99,26.0153]
[1718942915944,16.2576,133.09,133.0,20.0]
[1718942916147,16.2576,133.09,133.01,0.17]
[1718942916669,16.2576,133.09,133.01,0.34]
[1718942916868,16.2576,133.09,133.02,6.184]
[1718942917063,16.2576,133.09,133.03,20.34]
[1718942917263,16.2576,133.09,133.04,0.17]
[1718942918356,16.2576,133.09,133.03,20.34]
[1718942918555,16.2576,133.09,133.03,0.34]
[1718942921060,16.2576,133.09,133.04,0.17]
[1718942924672,16.2576,133.09,133.04,20.17]
[1718942924868,16.2576,133.09,133.05,0.34]
[1718942925266,16.2576,133.09,133.05,0.17]
[1718942925464,16.2576,133.09,133.05,20.17]
[1718942925855,15.6214,133.12,133.06,1.84567496]
[1718942926074,15.6214,133.12,133.07,0.17]
[1718942926461,6.1034,133.13,133.07,6.1818]
[1718942926768,6.1034,133.13,133.08,20.34]
[1718942926957,6.1034,133.13,133.09,0.17]
[1718942927652,15.6214,133.15,133.09,0.17]
[1718942929378,15.6214,133.15,133.09,20.17]
[1718942929670,15.6214,133.15,133.1,0.34]
[1718942929853,15.6214,133.15,133.11,0.17]
[1718942930053,15.6214,133.15,133.1,0.34]
[1718942930264,15.6214,133.15,133.09,20.0]
[1718942931463,15.6214,133.15,133.1,0.17]
[1718942933159,15.6214,133.15,133.09,20.0]
[1718942933853,15.6214,133.15,133.06,20.0]
[1718942934062,6.1034,133.16,133.07,15.1392]
[1718942934274,6.1034,133.16,133.08,71.06]
[1718942934464,6.1034,133.16,133.11,28.49]
[1718942934662,6.1034,133.16,133.12,20.0]
[1718942934863,6.1034,133.16,133.1,28.49]
[1718942935072,6.1034,133.16,133.11,20.0]
[1718942935475,6.1034,133.16,133.12,0.17]
[1718942935986,6.1034,133.16,133.11,20.0]
[1718942936866,6.1034,133.16,133.12,0.17]
[1718942939380,6.1034,133.16,133.12,0.34]
[1718942940174,16.0299,133.17,133.13,0.17]
[1718942940377,16.0299,133.17,133.13,0.34]
[1718942940569,16.0299,133.17,133.14,0.17]
[1718942940907,16.0299,133.17,133.11,20.0]
[1718942941183,16.0299,133.17,133.12,0.17]
[1718942941380,16.0299,133.17,133.11,0.17]
[1718942941786,16.0299,133.17,133.1,20.0]
[1718942942087,16.0299,133.17,132.93,523.24913664]
[1718942942088,6.5935,133.16,133.04,79.9231]
[1718942942268,6.7635,133.16,133.06,16.0299]
[1718942943092,16.5641,133.15,133.04,28.49]
[1718942943269,6.5935,133.14,133.05,20.0]
[1718942944895,6.5086,133.12,133.05,20.0]
[1718942945074,15.8804,133.1,133.03,20.0]
[1718942945278,15.8804,133.1,133.01,16.5641]
[1718942945581,6.1495,133.09,133.01,16.5641]
[1718942945783,6.1495,133.09,132.97,22.57]
[1718942945995,6.1495,133.09,132.97,38.4504]
[1718942946178,6.1495,133.09,133.0,6.015]
[1718942946378,6.1495,133.09,133.01,20.0]
[1718942946771,6.1495,133.09,132.98,20.0]
[1718942946972,6.1495,133.09,132.97,15.8804]
[1718942947180,6.1495,133.09,132.97,21.8966]
[1718942947767,6.1495,133.09,132.97,15.8804]
[1718942947989,6.1495,133.09,132.98,0.17]
[1718942948168,6.1495,133.09,132.98,0.34]
[1718942948369,22.0496,133.07,132.98,20.0]
[1718942948776,6.5609,133.05,132.92,21.4962]
[1718942948976,6.5609,133.05,132.94,20.0]
[1718942949886,6.5609,133.05,132.94,26.0176]
[1718942950673,6.5609,133.05,132.94,20.0]
[1718942950968,16.1661,133.04,132.95,20.0]
[1718942951168,0.17,133.03,132.95,20.0]
[1718942951394,6.5647,133.02,132.93,16.1661]
[1718942951590,6.5647,133.02,132.94,20.0]
[1718942952994,6.5647,133.02,132.95,0.17]
[1718942953201,6.5647,133.02,132.95,0.51]
[1718942954014,16.1661,133.04,132.95,0.51]
[1718942954175,255.1,133.08,132.95,0.51]
[1718942954176,6.5647,133.07,132.97,22.57]
[1718942954477,6.5647,133.07,132.99,6.0153]
[1718942954788,6.5647,133.07,133.0,20.51]
[1718942955697,6.5647,133.07,133.0,26.5249]
[1718942956590,6.5647,133.07,133.02,6.014]
[1718942956896,6.5647,133.07,133.03,20.51]
[1718942957194,6.5647,133.07,133.03,20.17]
[1718942957401,6.5647,133.07,133.04,20.17]
[1718942957575,6.5647,133.07,133.04,0.17]
[1718942958090,6.0469,133.1,133.03,20.34]
[1718942958276,6.0469,133.1,133.04,0.17]
[1718942958971,6.0469,133.1,133.05,6.0124]
[1718942959179,6.0469,133.1,133.06,20.51]
[1718942959388,6.0469,133.1,133.07,20.17]
[1718942959571,16.0855,133.12,133.08,0.17]
[1718942961987,6.1657,133.13,133.07,0.34]
[1718942962198,6.1657,133.13,133.08,0.17]
[1718942962397,15.6122,133.15,133.08,6.181]
[1718942962583,15.6122,133.15,133.09,20.34]
[1718942962782,15.6122,133.15,133.1,0.17]
[1718942963877,15.6122,133.15,133.09,20.34]
[1718942964101,15.6122,133.15,133.09,0.34]
[1718942965599,15.6122,133.15,133.08,20.0]
[1718942965788,15.6122,133.15,133.07,20.0]
[1718942965989,15.6122,133.15,133.04,39.2829]
[1718942966902,15.6122,133.15,133.04,58.03424069]
[1718942967195,6.1657,133.17,133.08,6.0113]
[1718942967406,6.1657,133.17,133.1,6.0101]
[1718942967610,6.1657,133.17,133.11,20.0]
[1718942967790,6.1657,133.17,133.12,0.34]
[1718942968287,6.1657,133.17,133.12,0.17]
[1718942968510,6.1657,133.17,133.12,20.0]
[1718942968887,6.1657,133.17,133.09,20.0]
[1718942969104,6.1657,133.17,133.08,20.0]
[1718942969481,6.1657,133.17,133.07,6.0117]
[1718942969809,6.1657,133.17,133.06,26.0122]
[1718942970306,6.1657,133.17,133.07,6.1818]
[1718942970510,6.1657,133.17,133.07,20.51]
[1718942970882,6.1657,133.17,133.07,76.35]
[1718942971086,6.1657,133.17,133.1,6.0102]
[1718942971289,6.1657,133.17,133.11,20.51]
[1718942972009,16.1877,133.19,133.11,20.51]
[1718942972010,16.1877,133.19,133.12,6.0095]
[1718942972218,16.1877,133.19,133.13,20.51]
[1718942972378,16.1877,133.19,133.13,20.0]
[1718942972781,16.1877,133.19,133.11,0.34]
[1718942973016,16.1877,133.19,133.12,0.17]
[1718942973388,16.1877,133.19,133.1,20.0]
[1718942973695,6.2966,133.18,133.1,20.0]
[1718942973890,6.2966,133.18,133.06,20.0]
[1718942974318,6.2966,133.18,133.06,26.0119]
[1718942975222,6.2966,133.18,133.07,0.51]
[1718942975409,6.2966,133.18,133.07,20.51]
[1718942975727,0.17,133.17,133.07,20.0]
[1718942975901,0.34,133.17,133.07,20.0]
[1718942976824,0.34,133.17,133.08,0.17]
[1718942977017,0.34,133.17,133.08,0.51]
[1718942977218,6.2966,133.18,133.08,0.51]
[1718942977936,6.2966,133.18,133.08,0.17]
[1718942978146,6.3466,133.16,133.07,20.0]
[1718942978432,6.123,133.14,133.07,20.0]
[1718942978636,6.123,133.14,133.03,16.6652]
[1718942979143,6.123,133.14,133.01,16.0309]
[1718942979144,6.123,133.14,133.01,38.6009]
[1718942979348,6.123,133.14,133.05,6.0125]
[1718942980045,6.123,133.14,133.07,6.0117]
[1718942980227,6.123,133.14,133.08,0.17]
[1718942980411,6.123,133.14,133.08,20.51]
[1718942982331,6.4685,133.17,133.1,28.5]
[1718942982636,6.4685,133.17,133.13,28.5]
[1718942982838,6.4685,133.17,133.14,20.17]
[1718942983010,15.7977,133.19,133.15,0.17]
[1718942983212,6.4685,133.21,133.15,0.34]
[1718942983428,6.4685,133.21,133.16,0.17]
[1718942983637,6.4685,133.21,133.16,48.84]
[1718942983813,22.8101,133.27,133.17,0.17]
[1718942984015,22.8101,133.27,133.17,0.34]
[1718942984231,22.8101,133.27,133.18,0.17]
[1718942984619,22.8101,133.27,133.18,0.34]
[1718942984821,22.8101,133.27,133.19,0.17]
[1718942985637,6.731,133.26,133.15,20.0]
[1718942985836,22.1308,133.25,133.14,0.17]
[1718942986057,0.17,133.24,133.14,0.17]
[1718942986414,0.17,133.24,133.12,20.0]
[1718942986415,6.561,133.23,133.12,20.0]
[1718942986615,0.34,133.22,133.12,20.0]
[1718942986833,21.5907,133.21,133.1,20.0]
[1718942987028,0.34,133.2,133.09,20.0]
[1718942987549,21.5907,133.21,133.09,26.0106]
[1718942987731,21.5907,133.21,133.1,0.17]